[Event "CHI-ch Absolute 2018"]
[Site "Santiago"]
[Date "2018.02.26"]
[Round "3"]
[White "Lopez Silva, Hugo"]
[Black "Llorens Sepulveda, Marcelo"]
[Result "1-0"]
[ECO "B76"]
[WhiteElo "2389"]
[BlackElo "2266"]
[Annotator "RC"]
[PlyCount "69"]
[EventDate "2018.??.??"]
[EventType "tourn"]
[EventCountry "CHI"]
[SourceTitle "playchess.com"]
[Source "ChessBase"]
[SourceQuality "1"]
[TimeControl "5400+30"]

1. e4 {[%emt 0:11:41]} c5 {[%emt 0:00:24]} 2. Nf3 {[%emt 0:00:03]} Nc6 {[%emt 0:00:11]} 3. d4 {[%emt 0:00:02]} cxd4 {[%emt 0:00:11]} 4. Nxd4 {[%emt 0:00:06]} g6 {[%emt 0:00:10]} 5. Nc3 {[%emt 0:06:32]} Bg7 {[%emt 0:00:13]} 6. Be3 {[%emt 0:00:02]} Nf6 {[%emt 0:00:27]} 7. f3 {[%emt 0:05:41]} O-O {[%emt 0:00:20]} 8. g4 {[%emt 0:00:04]} d6 {[%emt 0:15:05]} 9. Qd2 {[%emt 0:02:41]} Bd7 {[%emt 0:00:28]} 10. O-O-O {[%emt 0:00:09]} Rc8 {[%emt 0:01:13]} 11. h4 {[%emt 0:06:40]} Ne5 {[%emt 0:00:21]} 12. Kb1 {[%emt 0:00:19]} Qa5 {[%emt 0:00:18]} 13. Nb3 {[%emt 0:00:06]} Qc7 {[%emt 0:00:16]} 14. Be2 {[%emt 0:00:02]} b5 {[%emt 0:00:24]} 15. h5 {[%emt 0:01:55]} b4 {[%emt 0:00:11]} 16. Nd5 {[%emt 0:00:42]} Nxd5 {[%emt 0:00:06]} 17. exd5 {[%emt 0:00:04]} a5 {[%emt 0:00:26]} 18. Nd4 {[%emt 0:05:09]} Nc4 {[%emt 0:38:14]} 19. Bxc4 {[%emt 0:01:13]} Qxc4 {[%emt 0:01:35]} 20. hxg6 {[%emt 0:44:06]} fxg6 {[%emt 0:00:52]} 21. Qh2 {[%emt 0:00:07]} h6 {[%emt 0:21:01]} 22. b3 {[%emt 0:06:28]} Qxd5 {[%emt 0:14:12]} 23. Nf5 {[%emt 0:01:26]} Qe5 {[%emt 0:00:22]} 24. Qxe5 {[%emt 0:01:54]} Bxe5 {[%emt 0:02:31]} 25. Nxe7+ {[%emt 0:00:06]} Kf7 {[%emt 0:00:07]} 26. Nxc8 {[%emt 0:00:08]} Rxc8 {[%emt 0:00:29]} 27. Rxh6 {[%emt 0:01:07]} Bc6 {[%emt 0:02:25]} 28. Rh3 {[%emt 0:01:24]} Ke6 {[%emt 0:00:21]} 29. f4 {[%emt 0:00:59]} Bf6 {[%emt 0:01:15]} 30. f5+ {[%emt 0:01:19]} gxf5 {[%emt 0:00:13]} 31. gxf5+ {[%emt 0:00:01]} Kxf5 {[%emt 0:00:54]} 32. Rxd6 {[%emt 0:02:31]} Be4 {[%emt 0:00:06]} 33. Rh2 {[%emt 0:00:21]} Be5 {[%emt 0:00:32]} 34. Rh5+ {[%emt 0:00:45]} Kg4 {[%emt 0:01:00]} 35. Rxe5 {[%emt 0:01:37]} 1-0

[Event "CHI-ch Absolute 2018"]
[Site "Santiago"]
[Date "2018.02.28"]
[Round "7"]
[White "Barria Zuniga, Daniel"]
[Black "Llorens Sepulveda, Marcelo"]
[Result "1/2-1/2"]
[ECO "A57"]
[WhiteElo "2395"]
[BlackElo "2266"]
[Annotator "ChessBase"]
[PlyCount "23"]
[EventDate "2018.??.??"]
[EventType "tourn"]
[EventCountry "CHI"]
[SourceTitle "playchess.com"]
[Source "ChessBase"]
[SourceQuality "1"]
[TimeControl "5400+30"]

1. d4 {[%emt 0:00:31]} Nf6 {[%emt 0:06:35]} 2. c4 {[%emt 0:00:11]} c5 {[%emt 0:00:26]} 3. d5 {[%emt 0:00:16]} b5 {[%emt 0:00:24]} 4. cxb5 {[%emt 0:00:20]} a6 {[%emt 0:00:15]} 5. Nc3 {[%emt 0:00:08]} d6 {[%emt 0:00:27]} 6. e4 {[%emt 0:00:23]} g6 {[%emt 0:00:24]} 7. Nf3 {[%emt 0:00:57]} Bg7 {[%emt 0:00:15]} 8. a4 {[%emt 0:08:23]} O-O {[%emt 0:01:00]} 9. Bd2 {[%emt 0:01:26]} axb5 {[%emt 0:04:23]} 10. Bxb5 {[%emt 0:00:26]} Na6 {[%emt 0:00:25]} 11. O-O {[%emt 0:00:17]} Nb4 {[%emt 0:00:17]} 12. h3 {[%emt 0:00:18]} 1/2-1/2

[Event "CHI-ch Absolute 2018"]
[Site "Santiago"]
[Date "2018.03.03"]
[Round "11"]
[White "Abarca Gonzalez, Nicolas"]
[Black "Diaz Villagran, Robert"]
[Result "1/2-1/2"]
[ECO "C06"]
[WhiteElo "2388"]
[BlackElo "2317"]
[Annotator "NA"]
[PlyCount "20"]
[EventDate "2018.??.??"]
[EventType "tourn"]
[EventCountry "CHI"]
[SourceTitle "playchess.com"]
[Source "ChessBase"]
[SourceQuality "1"]
[TimeControl "5400+30"]

1. e4 {[%emt 0:07:37]} e6 {[%emt 0:00:09]} 2. d4 {[%emt 0:00:17]} d5 {[%emt 0:00:05]} 3. Nd2 {[%emt 0:00:03]} Nf6 {[%emt 0:00:04]} 4. e5 {[%emt 0:00:03]} Nfd7 {[%emt 0:00:04]} 5. Bd3 {[%emt 0:00:02]} c5 {[%emt 0:00:05]} 6. c3 {[%emt 0:00:05]} Nc6 {[%emt 0:00:15]} 7. Ne2 {[%emt 0:01:20]} cxd4 {[%emt 0:00:05]} 8. cxd4 {[%emt 0:00:02]} f6 $14 {[%emt 0:00:08] LiveBook: 4279 Games} 9. Nf4 {[%emt 0:01:05]} Qe7 {[%emt 0:00:29]} 10. exf6 {[%emt 0:19:39]} Nxf6 {[%emt 1:34:06]} 1/2-1/2

[Event "CHI-ch Absolute 2018"]
[Site "Santiago"]
[Date "2018.03.03"]
[Round "11"]
[White "Fuentes Parra, Victor Ignacio"]
[Black "Barria Zuniga, Daniel"]
[Result "0-1"]
[ECO "B27"]
[WhiteElo "2148"]
[BlackElo "2395"]
[Annotator "NA"]
[PlyCount "68"]
[EventDate "2018.??.??"]
[EventType "tourn"]
[EventCountry "CHI"]
[SourceTitle "playchess.com"]
[Source "ChessBase"]
[SourceQuality "1"]
[TimeControl "5400+30"]

1. e4 {[%emt 0:07:31]} g6 {[%emt 0:01:04]} 2. d4 {[%emt 0:00:05]} Bg7 {[%emt 0:00:11]} 3. Nf3 {[%emt 0:00:04]} c5 {[%emt 0:00:07]} 4. c3 {[%emt 0:00:04]} cxd4 {[%emt 0:00:10]} 5. cxd4 {[%emt 0:00:04]} d5 {[%emt 0:00:06]} 6. e5 {[%emt 0:00:03]} Nc6 {[%emt 0:00:18]} 7. Nc3 {[%emt 0:00:19]} Nh6 {[%emt 0:00:07]} ({Black should play} 7... Bg4 $11) 8. Qb3 {[%emt 0:01:58]} Nf5 $11 {[%emt 0:03:05]} 9. Bb5 {[%emt 0:12:45]} O-O {[%emt 0:00:15]} 10. Bxc6 {[%emt 0:05:39]} bxc6 {[%emt 0:00:17]} 11. O-O {[%emt 0:00:47]} e6 {[%emt 0:05:26]} 12. Bg5 {[%emt 0:07:21]} Nxd4 {[%emt 0:01:24]} 13. Nxd4 {[%emt 0:02:26]} Qxg5 {[%emt 0:00:09]} 14. Nf3 {[%emt 0:00:09]} Qe7 {[%emt 0:02:17]} 15. Rac1 {[%emt 0:01:43]} c5 {[%emt 0:03:44]} 16. Qa3 {[%emt 0:05:34]} Bd7 {[%emt 0:00:56]} 17. Na4 {[%emt 0:05:11]} Bxa4 {[%emt 0:00:48]} 18. Qxa4 {[%emt 0:00:02]} Rfc8 {[%emt 0:00:17]} 19. Rc3 {[%emt 0:00:29]} Qb7 {[%emt 0:04:07]} 20. Rb3 {[%emt 0:01:49]} Qc6 {[%emt 0:00:17]} 21. Qf4 {[%emt 0:00:31]} Rab8 {[%emt 0:00:59]} 22. Ra3 {[%emt 0:18:29]} Rxb2 {[%emt 0:01:22]} 23. Rxa7 {[%emt 0:00:42]} Rb7 {[%emt 0:00:26]} 24. Ra3 {[%emt 0:00:25]} Rb4 {[%emt 0:00:54]} 25. Qd2 {[%emt 0:00:25]} Ra4 {[%emt 0:06:40]} 26. Rc3 {[%emt 0:00:33]} Qa6 {[%emt 0:01:00]} 27. Rc2 {[%emt 0:00:26]} Qa5 {[%emt 0:02:08]} 28. Qg5 {[%emt 0:03:06]} Rxa2 {[%emt 0:03:16]} 29. Rxa2 {[%emt 0:00:18]} Qxa2 {[%emt 0:00:04]} 30. h4 {[%emt 0:00:02]} h6 {[%emt 0:03:08]} 31. Qe7 {[%emt 0:00:02]} Qa5 {[%emt 0:01:25]} 32. h5 {[%emt 0:00:02]} g5 {[%emt 0:01:34]} 33. Qb7 {[%emt 0:00:53]} Qc7 {[%emt 0:00:25]} 34. Qb2 {[%emt 0:00:21]} g4 {[%emt 0:59:04]} 0-1